Workbook

Sheet Cover Page
N2: Version 24.2b (for co-incinerators) - 27/11/24
N4: Note that there is another version of this template available for incinerators
B8: Add photo
N13: Notes:
N14: This template may require adjustments by individual operators to meet specific reporting requirements as defined in the site Permit(s)
B29: Annual Performance Report 2024
B31: Permit EPR/UP3708SB
B33: Bridgwater Resource Recovery Limited
B35: other name of facility (if applicable)
B37: Bridgwater Resource Recovery Limited
B39: Year: | C39: 2024
B41: Address: | C41: Showground Road, Bridgwater, Somerset TA6 6AJ
B43: Tel:
B45: Email: | C45: scott.morse@brrl.uk
B47: Prepared by: | C47: Scott Morse | F47: Position: | G47: HSE Manager
B49: Approved by: | C49: Neil Townsend | F49: Position: | G49: Plant Manager
B51: Version: | C51: 1
B53: Issue Date: | C53: 2025-02-07

Sheet Contents
A1: =+'Cover Page'!$B$29 -> Annual Performance Report 2024 | E1: =+'Cover Page'!$B$33 -> Bridgwater Resource Recovery Limited
A3: Contents | K3: Notes:
A4: Section | B4: Subject | H4: Page | K4: Section references and Page nos. to be inserted
B5: Facility Information | K5: Sections and Subjects may require adjustment by individual operators to meet specific reporting requirements as defined in the sites Permit(s)
B6: Operational Data
B7: Operational Summary
B8: Performance Form 1
B9: Energy Form 1
B10: Permit Compliance
B11: Improvements
B12: Public Liaison
B13: Carbon dioxide and nitrous oxide emissions
B14: Residue Quality
B15: Emissions to Water
B16: Emissions to Air (periodically monitored)
B17: Emissions to Air (continuously monitored)
B18: Hydrogen Chloride emissions
B19: Sulphur Dioxide emissions
B20: Oxides of Nitrogen emissions
B21: Total Organic Carbon emissions
B22: Particulate Matter emissions
B23: Carbon Monoxide emissions
B24: Ammonia emissions
A27: Version Control
A28: Section | B28: Information | H28: Date
A29: ALL | B29: Draft for review | H29: 2025-02-06
A30: ALL | B30: V1 - EA issue | H30: 2025-02-07
A35: Distribution
A36: Copy | B36: Name, Role | H36: No.
A37: V1 | B37: Neil Townsend | H37: 1
A38: V1 | B38: EA | H38: 1
A45: This report is required under the Industrial Emissions Directive’s Article 55(2) requirements on reporting and public information on waste incineration plants and co-incineration plants, which require the operator to produce an annual report on the functioning and monitoring of the plant and make it available to the public.

Sheet Facility Info
A1: =+'Cover Page'!$B$29 -> Annual Performance Report 2024 | E1: =+'Cover Page'!$B$33 -> Bridgwater Resource Recovery Limited
A3: Plant Description and Design | K3: Notes:
A5: Furnace technology Moving Grate Number of lines 1 Principal waste type Municipal /commercial & RDF. Stack height 40m Permitted plant capacity 122,640 tonnes per year Electrical generation capacity 9.58MWe The site is located off Showground Road, Bridgwater, Somerset, TA6 6AJ. The centre of the site is at National Grid Reference ST30970 35064. The site is to the north of M5 motorway, and west of the Bridgwater and Taunton Canal. The Installation has a single incineration line. Non-hazardous refuse derived fuel (RDF) and mixed municipal waste is delivered to the tipping hall by enclosed vehicles where it is tipped into the fuel storage area or directly into the fuel bunker. An overhead crane grab is used to spread the waste tipped into the waste bunker. The grabs transfer waste to the feed hopper which feeds the moving grate furnace where the waste is burned. The fuel will be dosed by an integrated hydraulic pusher on the inclined mobile grate inside the combustion chamber, which will adjust the height and distribution of fuel on the grate and is cooled by air. Electric air fans, equipped with variable frequency drives, provides primary and secondary air in the various sections of the combustion grate and furnace. Primary combustion air is sourced from the waste reception areas, which serves to keep the building under negative air pressure (aiding odour control within the waste reception areas). | K5: Include summary of plant design, design capacity, no. of combustion lines, electrical and heat capacity and any other general information that describes the facility, its location and purpose
A20: Summary of Operational Processes and Procedures
A22: The combustion chamber is designed to achieve good burnout of combustion gases by ensuring that these are maintained at a minimum 850°C for a minimum residence time of 2 seconds. At start-up, auxiliary industrial heating oil (IHO) fed burners will be used to heat up the combustion chamber to at least 850°C before any waste is introduced. During operation, the burners will also be switched on automatically if the temperature approached to fall below this 850°C and, during shutdown, the burners are used to maintain this temperature until there is no more unburnt waste in the combustion chamber. Emissions will be minimised by cleaning the waste combustion gases as follows: • Oxides of nitrogen (NOx) are abated using a 2-stage system of Selective Non-Catalytic Reduction (SNCR) and Selective Catalytic Reduction (SCR) • Acid Gases are abated using a 2-step process firstly dosing the combustion chamber with magnesium lime and the second step dosing of lime into the flue stream after the boiler • Dioxins, mercury, and volatiles are abated using activated carbon injection • Particulate matter including metals are abated by bag filters Process effluents and contaminated runoff will be discharged to foul sewer and treated at the nearby Wessex Water Bridgwater Water Recycling Centre. Uncontaminated surface water runoff from the buildings roofs, roadways and car parks will be discharged by the site’s drainage system to Wessex Water’s surface water drainage system. Additional attenuation is provided by an existing pond on the opposite side of Showground Road to the proposed facility. This will only be used in the event that the amount of surface water generated from the installation exceeds the nominal connection to the Wessex Water storm water system. A hydrobrake is installed to control the rate of outflow. Bottom ash is transferred off-site for processing. Air pollution control (APC) residues are stored in silos prior to removal from site in sealed tankers. The Installation generates electricity at a rate of approximately 9.58MWe with approximately 7.75MWe supplied to the grid | K22: Include summary of key processes and procedures such as (but not limited to); waste reception, control rooms, grate, bed and boiler, energy & heat generation, cooling systems, residue management, emission controls, health and safety systems, maintenance

Sheet Operational Data
A1: =+'Cover Page'!$B$29 -> Annual Performance Report 2024 | E1: =+'Cover Page'!$B$33 -> Bridgwater Resource Recovery Limited
A3: Operational Data
A4: Plant Size | B4: 122640 | D4: tonnes pa | F4: MWth | G4: 9.58 | H4: MWe | J4: Notes:
A5: No. of combustion lines | B5: 1 | D5: No. of Turbines: | F5: 1 | J5: * - RDF to include SRF
J6: ** - Combusted tonnage = tonnes delivered in period + (tonnes in bunker at start of period – tonnes in bunker at end of period), or equivalent calculation depending on plant type
A7: Waste types received | B7: Unit | C7: Q1 | D7: Q2 | E7: Q3 | F7: Q4 | G7: Year Total | H7: %
A8: Household / Local Authority | B8: tonnes | G8: =SUM(C8:F8) -> 0 | H8: =IF(G8>0,G8/$G$18,"-") -> -
A9: Commercial & Industrial | G9: =SUM(C9:F9) -> 0 | H9: - | J9: *** - CHP plants only
A10: Hazardous | G10: 0 | H10: - | J10: **** Availability Definition: 'the availability of a line is to be calculated by the number of hours the line reported Continuously Monitored emission levels to the Regulator through the calendar year divided by the total number of hours in that year. The overall plant availability is calculated as the Mean of all lines in the plant. For clarity this includes periods of abnormal operation.' Rationale: The primary function of an Energy from Waste facility is the disposal of waste. It follows therefore that the availability of a plant is determined by the period of time a facility spends undertaking this activity.
A11: Clinical | G11: 0 | H11: -
A12: Waste wood (biomass) | G12: 0 | H12: -
A13: Refuse Derived Fuel * - H'hold/LA | G13: =SUM(C13:F13) -> 0 | H13: -
A14: Refuse Derived Fuel * - C&I | F14: 7501.41 | G14: 7501.41 | H14: 1
A15: Other [Please specify] | G15: 0 | H15: -
A16: Other [Please specify] | G16: 0 | H16: -
A17: Other [Please specify] | G17: 0 | H17: -
A18: Total waste received | C18: =SUM(C8:C17) -> 0 | D18: =SUM(D8:D17) -> 0 | E18: =SUM(E8:E17) -> 0 | F18: =SUM(F8:F17) -> 7501.41 | G18: 7501.41
A19: Rejected Waste | G19: =SUM(C19:F19) -> 0 | H19: =IF(G19>0,G19/$G$18,"-") -> -
A20: Unprocessed waste transferred out | G20: =SUM(C20:F20) -> 0 | H20: =IF(G20>0,G20/$G$18,"-") -> -
A21: Total waste combusted ** | F21: 6701.91 | G21: =SUM(C21:F21) -> 6701.91
J22: Password for protected cells A password has been set to prevent accidental editing of cells with formulae. If you still need to make an edit for some reason then the password = 1234
A23: Energy Usage / Export | B23: Unit | C23: Q1 | D23: Q2 | E23: Q3 | F23: Q4 | G23: Year Total | H23: KWh/te
A24: Power Generated | B24: MWh | F24: 6452.6 | G24: =SUM(C24:F24) -> 6452.6 | H24: =IF(G24>0,G24*1000/$G$21,"-") -> 962.800157
A25: Power Exported | F25: 5404.8 | G25: =SUM(C25:F25) -> 5404.8 | H25: =IF(G25>0,G25*1000/$G$21,"-") -> 806.4566668
A26: Power Used on site | F26: =1259.2-211 -> 1048.2 | G26: =SUM(C26:F26) -> 1048.2 | H26: =IF(G26>0,G26*1000/$G$21,"-") -> 156.4031746
A27: Power Imported | F27: 211.4 | G27: 211.4 | H27: =IF(G27>0,G27*1000/$G$21,"-") -> 31.54324663
A28: Parasitic Load | B28: % | C28: =IF(C24>0,1-C25/(C24+C27),"-") -> - | D28: =IF(D24>0,1-D25/(D24+D27),"-") -> - | E28: =IF(E24>0,1-E25/(E24+E27),"-") -> - | F28: =IF(F24>0,1-F25/(F24+F27),"-") -> 0.1889555822 | G28: =IF(G24>0,1-G25/(G24+G27),"-") -> 0.1889555822
A29: Thermal Energy Produced *** | B29: MWh | G29: =SUM(C29:F29) -> 0 | H29: =IF(G29>0,G29*1000/$G$21,"-") -> -
A30: Thermal Energy Exported *** | G30: 0 | H30: =IF(G30>0,G30*1000/$G$21,"-") -> -
A31: R1 value (if applicable) | B31: R1
A33: Waste Disposal & Recovery | B33: Unit | C33: Q1 | D33: Q2 | E33: Q3 | F33: Q4 | G33: Year Total | H33: % inputs
A34: APC Residues - produced | B34: tonnes | F34: 451.06 | G34: =SUM(C34:F34) -> 451.06 | H34: =IF(G34>0,G34/$G$21,"-") -> 0.06730320162
A35: IBA - produced | F35: 994.76 | G35: 994.76 | H35: =IF(G35>0,G35/$G$21,"-") -> 0.1484293284
A36: Metals recycling | F36: 0 | G36: =SUM(C36:F36) -> 0 | H36: -
A37: Other | C37: 0 | D37: 0 | E37: 0 | F37: 0 | G37: =SUM(C37:F37) -> 0 | H37: -
A38: Other | C38: 0 | D38: 0 | E38: 0 | F38: 0 | G38: 0 | H38: -
A39: Other | C39: 0 | D39: 0 | E39: 0 | F39: 0 | G39: 0 | H39: -
A41: Raw Material Usage | B41: Unit | C41: Q1 | D41: Q2 | E41: Q3 | F41: Q4 | G41: Year Total | H41: kg or Ltr /te
A42: Mains Water | B42: ltrs | F42: 6336000 | G42: =SUM(C42:F42) -> 6336000 | H42: =IF(G42>0,G42/$G$21,"-") -> 945.4021316
A43: Other Water | B43: ltrs | F43: 0 | G43: 0 | H43: =IF(G43>0,G43/$G$21,"-") -> -
A44: Ammonia | B44: kgs | F44: 0 | G44: 0 | H44: -
A45: Urea | B45: kgs | F45: 68000 | G45: =SUM(C45:F45) -> 68000 | H45: 10.14636126
A46: Activated Carbon | B46: kgs | F46: 1077 | G46: 1077 | H46: 0.160700457
A47: Lime / hydrated lime | B47: kgs | F47: 222530 | G47: 222530 | H47: 33.20396723
A48: Fuel oil | B48: ltrs | F48: 255281 | G48: 255281 | H48: 38.09078308
A49: Gas | B49: cuf | F49: 0 | G49: 0
A50: Other | F50: 0 | G50: 0
A52: Summary | B52: Line/Unit | C52: Q1 | D52: Q2 | E52: Q3 | F52: Q4 | G52: Year Total | I52: Hrs in year
A53: Availability of waste combustion by line, hrs **** | B53: =+B5 -> 1 | F53: 883 | G53: =SUM(C53:F53) -> 883 | H53: =+G53/$I$53 -> 0.1007990868 | I53: 8760 | J53: Change this figure to 8784 in a leap year
B54: 2 | F54: 0 | G54: 0 | H54: =+G54/$I$53 -> 0
B55: 3 | F55: 0 | G55: 0 | H55: 0
B56: 4 | F56: 0 | G56: 0 | H56: 0
B57: 5 | F57: 0 | G57: =SUM(C57:F57) -> 0 | H57: 0
A58: Overall Availability, mean avg. of all lines, hrs | G58: =AVERAGE(G53) -> 883 | H58: 0.1007990868 | I58: *ONE LINE ONLY
A59: Hours of turbine operations, hrs | B59: 1 | F59: 960 | G59: 960 | H59: 0.1095890411
A60: Hours of turbine operations, hrs | B60: 2 | G60: 0 | H60: 0
A61: Hours of heat / steam export | G61: 0 | H61: =IF(B61>0,G60/I53,"n/a") -> n/a
A62: Net Calorific Value of waste | B62: MJ/kg | F62: 14
A63: Abnormal Events | B63: qty. | F63: 0 | G63: 0 | H63: =IF(G63>0,"yes","no") -> no
A64: Abnormal operation | B64: hours | F64: 1 | G64: 1 | H64: =+(G64)/I53 -> 0.0001141552511
A65: Permit Breaches | B65: qty. | F65: 0 | G65: 0 | H65: =IF(G65>0,"yes","no") -> no

Sheet Operational Summary
A1: =+'Cover Page'!$B$29 -> Annual Performance Report 2024 | E1: =+'Cover Page'!$B$33 -> Bridgwater Resource Recovery Limited
A3: Summary of Plant Operations and Maintenance during the reporting year | K3: Notes:
A5: Operational since 1st November 2024, 3 shutdowns of +1 day for boiler inspections/clearing feed chute hopper blockage and conveyor blockages. We have reveiwed waste supply and agreed a new supplier to assist with preventing these issues. | K5: Include summary of key operational and/or maintenance activity undertaken in the year, such as any major component upgrades and/or replacements
A29: Summary of Residue Handling for the reporting year
A31: IBA sent to Fortis IBA @ Andover, APCr sent to Castle Environmental @ Ilkeston, BFA sent to Castle Environmental@ Stoke. All facilities Recover these waste streams. | K31: Include in here a summary of residue handling regimes and destinations
A54: =+'[1]Cover Page'!C39 -> 2024 | B54: Plant shut-downs
A55: Date | B55: Reason for shut-down | K55: Provide a very brief reason for plant shut-down e.g. "Shut-down prior to major outage"; "Emergency shut-down due to boiler tube leak" There is no need to include periods of hot-standby here (e.g. to clear feed chute hopper blockages). For clinical waste incinerators which require regular shut-downs for boiler cleaning, there is no need to record these here.
A56: 2024-11-18 | B56: IBA transport line breakdown, 4 days to repair.
A57: 2024-12-08 | B57: Mechanical issues with feed pushers and clearing blockages, 2 days to repair.
A58: 2024-12-14 | B58: Centre pusher failure causing waste blockage in feed chutes 10 days to repair.

Sheet Perf. Form 1
A1: =+'Cover Page'!C39 -> 2024 | B1: Annual Reporting Performance Form 1
A3: =+'Cover Page'!B31 -> Permit EPR/UP3708SB | F3: Operator: | G3: =+'Cover Page'!B37 -> Bridgwater Resource Recovery Limited
A4: Facility: | B4: =+'Cover Page'!B33:I33 -> Bridgwater Resource Recovery Limited | F4: Form: | G4: Performance 1
A6: Reporting Period from: | D6: 2024-11-01 | F6: to: | G6: 2024-12-31
A8: =+A1 -> 2024 | B8: Annual Reporting of Waste Disposal and Recovery
A9: Waste Description | C9: Disposal Route(s) | E9: Disposal Tonnes | G9: Recovery Tonnes | I9: % / tonne of waste incinerated
A10: 1) Hazardous Wastes
A11: APC Residues | C11: Castle Environmental | G11: 451.06 | I11: =IF((E11+G11)>0,(E11+G11)/'Operational Data'!$G$21, "-") -> 0.06730320162
A12: IBA | I12: =IF((E12+G12)>0,(E12+G12)/'Operational Data'!$G$21, "-") -> -
I13: =IF((E13+G13)>0,(E13+G13)/'Operational Data'!$G$21, "-") -> -
I14: =IF((E14+G14)>0,(E14+G14)/'Operational Data'!$G$21, "-") -> -
A15: Total Hazardous Waste | E15: =SUM(E11:F14) -> 0 | G15: =SUM(G11:H14) -> 451.06 | I15: =IF((E15+G15)>0,(E15+G15)/'Operational Data'!$G$21, "-") -> 0.06730320162
A17: 2) Non-Hazardous Wastes
A18: IBA | C18: IBA Fortis | G18: 994.76 | I18: =IF((E18+G18)>0,(E18+G18)/'Operational Data'!$G$21, "-") -> 0.1484293284
A19: Ferrous Metal | I19: =IF((E19+G19)>0,(E19+G19)/'Operational Data'!$G$21, "-") -> -
A20: Process Water | I20: =IF((E20+G20)>0,(E20+G20)/'Operational Data'!$G$21, "-") -> -
I21: =IF((E21+G21)>0,(E21+G21)/'Operational Data'!$G$21, "-") -> -
I22: =IF((E22+G22)>0,(E22+G22)/'Operational Data'!$G$21, "-") -> -
A23: Total Non-Hazardous Waste | E23: =SUM(E18:F22) -> 0 | G23: =SUM(G18:H22) -> 994.76 | I23: =IF((E23+G23)>0,(E23+G23)/'Operational Data'!$G$21, "-") -> 0.1484293284
A24: TOTAL WASTE | E24: =+E23+E15 -> 0 | G24: =+G23+G15 -> 1445.82 | I24: =IF((E24+G24)>0,(E24+G24)/'Operational Data'!$G$21, "-") -> 0.21573253
A26: Operator’s comments :
A31: =+A1 -> 2024 | B31: Annual Reporting of Water and Other Raw Material Usage
A32: Raw Material | E32: Usage | G32: Unit | H32: Specific Usage | J32: Unit
A33: Mains Water | E33: =+'Operational Data'!G42/1000 -> 6336 | G33: m3 | H33: =IF(E33>0,E33/'Operational Data'!$G$21,"-") -> 0.9454021316 | J33: m3/te
A34: Total Water | E34: =+'Operational Data'!G43+'Operational Data'!G42/1000 -> 6336 | G34: m3 | H34: =IF(E34>0,E34/'Operational Data'!$G$21,"-") -> 0.9454021316 | J34: m3/te
A35: Urea / Ammonia | E35: =+'Operational Data'!G45 -> 68000 | G35: kg | H35: =IF(E35>0,E35/'Operational Data'!$G$21,"-") -> 10.14636126 | J35: kg/te
A36: Activated Carbon | E36: =+'Operational Data'!G46 -> 1077 | G36: kg | H36: =IF(E36>0,E36/'Operational Data'!$G$21,"-") -> 0.160700457 | J36: kg/te
A37: Lime / hydrated lime / Sodium Bicarb. | E37: =+'Operational Data'!G47 -> 222530 | G37: kg | H37: =IF(E37>0,E37/'Operational Data'!$G$21,"-") -> 33.20396723 | J37: kg/te
A39: Operator’s comments :
A43: =+A31 -> 2024 | B43: Annual Reporting of other performance indicators
A44: Parameter | C44: Results by Line
C45: A1 | D45: A2 | E45: A3 | F45: A4 | G45: A5 | I45: Turbine 1 | J45: Turbine 2
A46: Operating hours for the year, hours | C46: ='Operational Data'!G53 -> 883 | I46: 960
A47: Number of periods of abnormal operation, qty. | C47: 1
A48: Cumulative hours of abnormal operation for this year, hours | C48: 1
A50: Operator’s comments :
A54: Signed: | G54: Date:

Sheet Energy Form 1
A1: =+'Cover Page'!C39 -> 2024 | B1: Annual Reporting of Energy Usage/Export
A3: =+'Cover Page'!B31 -> Permit EPR/UP3708SB | F3: Operator: | G3: =+'Cover Page'!B37 -> Bridgwater Resource Recovery Limited
A5: Facility: | B5: =+'Cover Page'!B33:I33 -> Bridgwater Resource Recovery Limited | F5: Form: | G5: Energy 1
A7: Reporting Period from: | D7: =+'Perf. Form 1'!D6:E6 -> 2024-11-01 | F7: to: | G7: =+'Perf. Form 1'!G6:H6 -> 2024-12-31
A9: Energy Source | D9: Energy Usage | F9: Unit | G9: Specific Usage (KWh/tonne incinerated
A10: Electricity Produced | D10: =+'Operational Data'!G24 -> 6452.6 | F10: MWh | G10: =+'Operational Data'!H24 -> 962.800157
A11: Electricity Imported | D11: =+'Operational Data'!G27 -> 211.4 | F11: MWh | G11: =+'Operational Data'!H27 -> 31.54324663
A12: Electricity Exported | D12: =+'Operational Data'!G25 -> 5404.8 | F12: MWh | G12: =+'Operational Data'!H25 -> 806.4566668
A13: Gas Oil | D13: ='Operational Data'!G48/1000 -> 255.281 | F13: tonnes
A14: Steam/hot water exported | D14: =+'Operational Data'!G30 -> 0 | F14: GWh | G14: =+'Operational Data'!H30 -> -
A18: Operator’s comments :
A29: Signed: | G29: Date:

Sheet Permit Compliance
A1: =+'Cover Page'!$B$29 -> Annual Performance Report 2024 | E1: =+'[2]Cover Page'!$B$33 -> Name of Facility as per Permit
A3: Summary of Permit Compliance
A5: Compliance with permit limits for continuously monitored pollutants
A7: The plant met its emission limits as shown in the table below:
A8: Substance | C8: Percentage time compliant during operationNote 1 | L8: Notes:
C9: Half-hourly limit | F9: Daily limit | L9: Note 1: Please report to 2 decimal places, i.e. xx.xx% Note 2: Please enter into this table any permit non-compliances that the EA has given a CCS score for. Please also enter any other non-compliances which you have notified to the EA (e.g. ELV exceedances) but which have not yet been assessed by the EA. There is no need to enter any notifications which were subsequently assessed by the EA not to be permit breaches. Note 3: Please enter information here (rather than just referencing the notifications that were sent to the EA) including where relevant the incineration line reference, pollutant and value of the measured result for any ELV exceedances.
A10: Particulates | C10: 1 | F10: 1
A11: Oxides of nitrogen | C11: 1 | F11: 1
A12: Sulphur dioxide | C12: 1 | F12: 1
A13: Carbon monoxide | C13: 1 | F13: 1
A14: Total organic carbon | C14: 1 | F14: 1
A15: Hydrogen chloride | C15: 1 | F15: 0.9836
A16: Hydrogen fluoride | C16: N/A | F16: N/A
A19: Summary of non-compliances under the permit Note 2
A20: Date | B20: Summary of non-compliance Note 3 | D20: Reason | G20: Measures taken to prevent reoccurrence | H20: CCS score if applicable*
H21: Impact | I21: Root cause
A22: 2024-12-02 | B22: Daily ELV HCL breach | D22: Failure of the raw gas analyser, OEM called to site to change component | G22: Reduced load, increased abatement dosing
A27: *If the Environment Agency (EA) has given a Compliance Classification Scheme (CCS) score due to a permit non-compliance it should be entered here (CCS4 = No impact; CCS3 = Minor impact; CCS2 = Significant impact; CCS1 = Major impact). If the EA has not yet assessed a non-compliance which you have notified to them, these columns should be left blank.
A29: Summary of any complaints received and actions to taken to resolve them.
A30: Date | B30: Summary of complaint [including Line/Reference] | E30: Reason (including whether substantiated by the operator or the EA) | H30: Measures taken to prevent reoccurrence

Sheet Improvements
A1: =+'Cover Page'!$B$29 -> Annual Performance Report 2024 | E1: =+'Cover Page'!$B$33 -> Bridgwater Resource Recovery Limited
A3: Summary of Plant Improvements
A5: Summary of any efficiency improvements that have been completed within the year.
A6: Change waste supplier to reduce on downtime.
A16: Summary of any permit improvement conditions that have been completed within the year and the resulting environmental benefits.
A17: None within reporting period of 1 November 2024 - 31 December 2024.
A27: Summary of any changes to the plant or operating techniques which required a variation to the permit and a summary of the resulting environmental impact.
A38: Summary of any other improvements made to the plant or planned to be made and a summary of the resulting environmental benefits.
A39: Review of monitoring requirements in varied permit (this improvement has been initiated with CEMS provider)

Sheet Public Liaison
A1: =+'Cover Page'!$B$29 -> Annual Performance Report 2024 | E1: =+'Cover Page'!$B$33 -> Bridgwater Resource Recovery Limited
A3: Details of Public & Stakeholder Liaison
A5: Summary of events held during the reporting year.
A6: Date | C6: Description
A16: List of events planned for next year
A17: Date | C17: Description
A29: If you wish to be involved in the public liaison programme, please contact _________________

Sheet CO2 N2O
A1: =+'Cover Page'!$B$29 -> Annual Performance Report 2024 | C1: =+'[2]Cover Page'!$B$33 -> Name of Facility as per Permit
A3: Carbon dioxide emissions and biogenic content of waste inputs | F3: Notes:
A5: Carbon dioxide emissions (all types of plant)
B6: Annual mass of carbon dioxide released | C6: tonnes | D6: 11968.51
B7: Annual mass of carbon dioxide released per tonne of waste burned | C7: t CO2 / t waste | D7: =+D6/'Operational Data'!F21 -> 1.78583568
B8: Annual mass of carbon dioxide released per MWh of energy exported | C8: t CO2 / MWh export | D8: =+D6/'Operational Data'!F25 -> 2.214422365
B9: Description of how annual carbon dioxide mass emission has been calculated. See Note 1 | C9: CO2 measured using CEMS in accordance with permit to EN14181 | F9: Note 1: All permits require operators to continuously monitor CO2 to EN14181 and flow to BS EN 16911-2 (unless otherwise agreed in writing). Operators must therefore use the results from these instruments to calculate their annual CO2 emissions. Where an operator does not have a flow meter calibrated to BS EN 16911-2, the averaged flow measurement from that year's periodic monitoring can be used instead. If the plant does not have calibrated CO2 CEMS, a suitably justified emissions factor can be used.
A10: Nitrous oxide emissions (only plants which use ammonia or urea to abate NOx emissions)
B11: Annual mass emissions of nitrous oxide | C11: tonnes N2O
B12: Description of how annual nitrous oxide mass emission has been calculated See Note 2 | C12: Not measured, improvement action progressed. | F12: Note 2: All permits require operators to continuously monitor N2O to EN14181 and flow to BS EN 16911-2, unless otherwise agreed in writing. Operators must therefore use the results from these instruments to calculate their annual N2O emissions. Where an operator does not have a flow meter calibrated to BS EN 16911-2, the averaged flow measurement from periodic monitoring can be used instead. If the plant does not have calibrated N2O CEMS, data from periodic monitoring or a suitably justified emissions factor can be used instead.
A13: Total annual carbon dioxide + nitrous oxide emissions. See Note 3. | C13: tonnes CO2e | F13: Note 3: Total annual carbon dioxide and nitrous oxide emissions reported as carbon dioxide equivalent where 1 tonne nitrous oxide is equivalent to 265 tonnes carbon dioxide.
A14: Biogenic CO2 emissions (See Note 4) | F14: Note 4: Only plants combusting residual municipal waste, refuse derived fuel or solid recovered fuel need complete this section.
B15: Percentage of total carbon dioxide emissions arising from biogenic waste | C15: % | D15: 0.46
B16: No. of measurements undertaken | C16: Number | D16: 0
B17: Description of how percentage biogenic carbon dioxide emissions have been measured or calculated. See Note 5 | C17: Supplied in permit application | F17: Note 5: The results from C14 sampling should be used if this is carried out at the plant (either via an installed sampler or from spot samples). Otherwise, as an approximation (and in lieu of any more accurate metrics which may be developed in future), the measured or estimated biogenic fraction by net calorific value (see Note 6) can be assumed to be the same as the biogenic CO2 fraction of the total CO2 emissions from the plant.
A18: Biogenic fraction of waste feedstock (See Note 4)
B19: Yearly average biogenic percentage of the waste by net calorific value (NCV) | C19: % | D19: 0.46
B20: Description of how biogenic percentage (by NCV) has been calculated or estimated. See Note 6 | C20: Supplied in permit application | F20: Note 6: If C14 sampling is carried out at the plant, the methodology set out in the embedded document entitled "Renewable Energy Association Energy Content of Fuels - Description of Method" embedded below can be used to calculate the biogenic percentage by net calorific value. Otherwise, data from waste sampling or BIOMA software can be used; or if none of these are available, an estimated figure with justification or a figure assumed on the basis of up-to-date industry data can be used.
B21: Yearly average biogenic percentage of the waste by mass | C21: %
B22: If waste sampling undertaken, no. of samples used to ascertain average biogenic percentages above | C22: Number
B23: Description of how biogenic percentage (by mass) has been calculated or estimated. See Note 7 | F23: Note 7: Where available, data from waste sampling should be used; otherwise, an estimated figure with justification can be used, or a figure assumed on the basis of up-to-date industry data.
B25: Comments:

Sheet Residue Quality
A1: =+'Cover Page'!$B$29 -> Annual Performance Report 2024 | E1: =+'[2]Cover Page'!$B$33 -> Name of Facility as per Permit
A3: Residue Quality Monitoring Requirements
A5: Summary of monitoring undertaken and compliance
A6: IBA, APCr and BFA sampling monthly, analysis reporting by Socotec.
A13: Commentary on any specific events
A14: Date & Event | C14: Description
A15: 2024-11-05 | C15: IBA & BFA sampling analysis completed
A17: 2024-11-13 | C17: IBA sampling analysis completed
A19: 2024-12-03 | C19: IBA & BFA sampling analysis completed
A21: 2024-12-12 | C21: IBA sampling analysis completed
A27: Residue Quality Monitoring Results
A28: Parameter (unit) | C28: Limit* | D28: Normal Operation
D29: Bottom ash | F29: APC Residues
A30: Loss on Ignition (average %) | C30: <5% | D30: N/A
A31: Total Organic Carbon (average %) | C31: <3% | D31: measured quarterly in Oct 2024
A32: No. of Assessments Undertaken | C32: --- | D32: 4 | F32: 0
A33: No. of Hazardous Results | C33: --- | D33: 0
A34: * The permit will specify a limit of either 5% loss on ignition or 3% total organic carbon. If both are measured anyway, please enter the results here, even where the limit does not apply.
A36: Comments :
A37: TOC analysis carried out in October 2024 (quarterly requirement). No samples taken during reporting period.

Sheet Water
A1: =+'Cover Page'!$B$29 -> Annual Performance Report 2024 | E1: =+'Cover Page'!$B$33 -> Bridgwater Resource Recovery Limited
A3: Emissions to Water
A5: Summary of monitoring undertaken and compliance
A6: N/A
A13: Commentary on any specific events
A14: Date & Event | C14: Description
A22: Emissions to Water / Sewer
A23: Parameter | D23: Monitoring Frequency | F23: Limit | G23: Target | H23: Max. | I23: Average

Sheet Air (periodic)
A1: =+'Cover Page'!$B$29 -> Annual Performance Report 2024 | E1: =+'Cover Page'!$B$33 -> Bridgwater Resource Recovery Limited
A3: Emissions to Air (periodically monitored)
A5: Summary of monitoring undertaken, standards used and compliance | K5: Notes:
K6: Template may require adjustment for any bespoke monitoring requirements of permit - please also check that all default ELV values, reference periods and the stated oxygen reference value match those for your plant, and edit if necessary
A9: Results of emissions to air that are periodically monitored - oxygen reference 6%
A10: Substance | C10: Ref. Period | D10: Emission Limit Value | F10: Average | K10: User to add additional tables as necessary, depending on whether quarterly or bi-annual reporting is required for the compliance year
F11: A1 | G11: A2 | H11: A3 | I11: A4 | J11: A5
A12: Hydrogen fluoride | C12: 0.5-8hrs | D12: 1.0 mg/m3 | F12: 0.1
A13: Cd and Tl and their compounds | C13: 0.5-8hrs | D13: 0.02mg/m3
A14: Hg and its compounds | C14: 24hrs | D14: 0.02 mg/m3 | F14: =4.913/1000 -> 0.004913
A15: Sb, As, Pb, Cr, Co, Cu, Mn, Ni, V and their compounds | C15: 0.5-8hrs | D15: 0.3 mg/m3
A16: Dioxins & Furans (I-TEQ) | C16: 6-8hrs | D16: 0.04 ng/m3
A17: Dioxin-like PCB's (WHO12) | C17: 6-8hrs | D17: None set ng/m3 | F17: 0.2157
A21: Comments :
A22: Cd and TI, Sb, As, Pb, Cr, Co, Cu, Mn, Ni, V quarterly monitoring to commence in 1st quarter 2025. Dioxins & Furans (I-TEQ) have two sample results available, having technical issues interpreting the results. Seeking specialist support from new provider Alfred H Knight.

Sheet Air (CEMS)
A1: =+'Cover Page'!$B$29 -> Annual Performance Report 2024 | I1: =+'Cover Page'!$B$33 -> Bridgwater Resource Recovery Limited
A3: Emissions to Air (continously monitored)
N4: Notes:
A5: Summary of monitoring undertaken, standards used and compliance | N5: Template may require adjustment for any bespoke monitoring requirements of permit
A6: 2 x CEMS monitoring 24/7 | N6: Please check that all default ELV values, reference periods and the stated oxygen reference value match those for your plant, and edit if necessary
N7: Report to 1 decimal place
A11: Results of emissions to air that are continuously monitored (maximum and average values for each line) - oxygen reference 6%
A12: Substance | B12: Reference Period | C12: Emission Limit Value | D12: A1 | F12: A2 | H12: A3 | J12: A4 | L12: A5
D13: Max. | E13: Avg. | F13: Max. | G13: Avg. | H13: Max. | I13: Avg. | J13: Max. | K13: Avg. | L13: Max. | M13: Avg.
A14: Oxides of nitrogen | B14: Daily mean | C14: 120 mg/m3 | D14: =+NOx!O19 -> 103.5 | E14: =+NOx!N19 -> 92.8
B15: ½ hourly mean* | C15: 400 mg/m3 * | D15: =+NOx!M19 -> 154.3 | E15: =+NOx!L19 -> 86.95
A16: Particulates | B16: Daily mean | C16: 5 mg/m3 | D16: =+Particulates!O19 -> 0.12 | E16: =+Particulates!N19 -> 0.05
B17: ½ hourly mean* | C17: 30 mg/m3 * | D17: =+Particulates!M19 -> 0.9 | E17: =+Particulates!L19 -> 0.08
A18: Total Organic Carbon | B18: Daily mean | C18: 10 mg/m3 | D18: =+TOC!O19 -> 0.7 | E18: =+TOC!N19 -> 0.2
B19: ½ hourly mean* | C19: 20 mg/m3 * | D19: =+TOC!M19 -> 4.6 | E19: =+TOC!L19 -> 0.35
A20: Hydrogen chloride | B20: Daily mean | C20: 6 mg/m3 | D20: =+HCl!O19 -> 6.3 | E20: =+HCl!N19 -> 5.45
B21: ½ hourly mean* | C21: 60 mg/m3 * | D21: =+HCl!M19 -> 47.3 | E21: =+HCl!L19 -> 6.3
A22: Sulphur dioxide | B22: Daily mean | C22: 30 mg/m3 | D22: =+'SO2'!O19 -> 24.1 | E22: =+'SO2'!N19 -> 13.85
B23: ½ hourly mean* | C23: 200 mg/m3 * | D23: =+'SO2'!M19 -> 184.6 | E23: =+'SO2'!L19 -> 15
A24: Carbon monoxide | B24: Daily mean | C24: 50 mg/m3 | D24: =+'CO 0.5 hourly'!O22 -> 9.5 | E24: =+'CO 0.5 hourly'!N22 -> 4.1
B25: ½ hourly mean* | C25: 100mg/m3 * | D25: =+'CO 0.5 hourly'!M22 -> 96.6 | E25: =+'CO 0.5 hourly'!L22 -> 5.55
A27: Ammonia | B27: Daily mean | C27: 10 mg/m3 | D27: =+'NH3'!O19 -> 8.4 | E27: =+'NH3'!N19 -> 2.55
A28: * = delete if your plant does not have these limits
A29: Comments :

Sheet HCl
A1: =+'Cover Page'!$B$29 -> Annual Performance Report 2024 | E1: =+'Cover Page'!$B$33 -> Bridgwater Resource Recovery Limited
A3: Monitoring of Hydrogen Chloride emissions | D3: Whole Installation | G3: See Notes in Cell Q3 | J3: =+A3 -> Monitoring of Hydrogen Chloride emissions | N3: Per Combustion Line | Q3: Notes:
Q4: User to add logic to complete Whole installation, Table A5:G18. From the data in Per Combustion Line, Table J6:O79, subject to No. of lines installed
A5: =+'Cover Page'!C39 -> 2024 | B5: 1/2 Hourly Reference Periods | E5: Daily Reference Periods
A6: mg/Nm3 | B6: 1/2 hourly HCl ELV | C6: Monthly mean of half-hourly averages | D6: Highest half- hourly average | E6: Daily HCl ELV | F6: Monthly mean of daily averages | G6: Highest daily average | J6: =+A5 -> 2024 | K6: mg/Nm3 | L6: Monthly 1/2 hourly mean | M6: Monthly 1/2 hourly maximum | N6: Monthly daily mean | O6: Monthly daily maximum
A7: Jan | J7: A1 | K7: Jan
A8: Feb | K8: Feb
A9: Mar | K9: Mar | Q9: Whole Installation table A5:G18:
A10: Apr | K10: Apr | Q10: Mean: for 1/2 hourly and daily periods calculate mean of values across all operational combustion lines for the month
A11: May | K11: May
A12: Jun | K12: Jun
A13: Jul | K13: Jul | Q13: Maximum: for 1/2 hourly and daily periods use the highest value across all operational combustion lines for the month
A14: Aug | K14: Aug
A15: Sep | K15: Sep
A16: Oct | K16: Oct
A17: Nov | B17: 60 | C17: 5.4 | D17: 40.8 | E17: 6 | F17: 5.4 | G17: 5.9 | K17: Nov | L17: 5.4 | M17: 40.8 | N17: 5.4 | O17: 5.9
A18: Dec | B18: 60 | C18: 7.2 | D18: 47.3 | E18: 6 | F18: 5.5 | G18: 6.3 | K18: Dec | L18: 7.2 | M18: 47.3 | N18: 5.5 | O18: 6.3
K19: Annual | L19: =AVERAGE(L7:L18) -> 6.3 | M19: =MAX(M7:M18) -> 47.3 | N19: =AVERAGE(N7:N18) -> 5.45 | O19: =MAX(O7:O18) -> 6.3
J21: =+A5 -> 2024 | K21: mg/Nm3 | L21: Monthly 1/2 hourly mean | M21: Monthly 1/2 hourly maximum | N21: Monthly daily mean | O21: Monthly daily maximum
J22: A2 | K22: Jan
K23: Feb
K24: Mar
K25: Apr
K26: May
K27: Jun
K28: Jul
K29: Aug
K30: Sep
K31: Oct
K32: Nov
K33: Dec
K34: Annual | L34: =AVERAGE(L22:L33) ->  | M34: =MAX(M22:M33) -> 0 | N34: =AVERAGE(N22:N33) ->  | O34: =MAX(O22:O33) -> 0
J36: =+A5 -> 2024 | K36: mg/Nm3 | L36: Monthly 1/2 hourly mean | M36: Monthly 1/2 hourly maximum | N36: Monthly daily mean | O36: Monthly daily maximum
J37: A3 | K37: Jan
K38: Feb
K39: Mar
K40: Apr
K41: May
K42: Jun
K43: Jul
K44: Aug
K45: Sep
K46: Oct
K47: Nov
A48: Comments : | K48: Dec
K49: Annual | L49: =AVERAGE(L37:L48) ->  | M49: =MAX(M37:M48) -> 0 | N49: =AVERAGE(N37:N48) ->  | O49: =MAX(O37:O48) -> 0
J51: =+A5 -> 2024 | K51: mg/Nm3 | L51: Monthly 1/2 hourly mean | M51: Monthly 1/2 hourly maximum | N51: Monthly daily mean | O51: Monthly daily maximum
J52: A4 | K52: Jan
K53: Feb
K54: Mar
K55: Apr
K56: May
K57: Jun
K58: Jul
K59: Aug
K60: Sep
K61: Oct
K62: Nov
K63: Dec
K64: Annual | L64: =AVERAGE(L52:L63) ->  | M64: =MAX(M52:M63) -> 0 | N64: =AVERAGE(N52:N63) ->  | O64: =MAX(O52:O63) -> 0
J66: =+A5 -> 2024 | K66: mg/Nm3 | L66: Monthly 1/2 hourly mean | M66: Monthly 1/2 hourly maximum | N66: Monthly daily mean | O66: Monthly daily maximum
J67: A5 | K67: Jan
K68: Feb
K69: Mar
K70: Apr
K71: May
K72: Jun
K73: Jul
K74: Aug
K75: Sep
K76: Oct
K77: Nov
K78: Dec
K79: Annual | L79: =AVERAGE(L67:L78) ->  | M79: =MAX(M67:M78) -> 0 | N79: =AVERAGE(N67:N78) ->  | O79: =MAX(O67:O78) -> 0

Sheet SO2
A1: =+'Cover Page'!$B$29 -> Annual Performance Report 2024 | E1: =+'Cover Page'!$B$33 -> Bridgwater Resource Recovery Limited
A3: Monitoring of Sulphur dioxide emissions | D3: Whole Installation | G3: See Notes in Cell Q3 | J3: =+A3 -> Monitoring of Sulphur dioxide emissions | N3: Per Combustion Line | Q3: Notes:
Q4: User to add logic to complete Whole installation, Table A5:G18. From the data in Per Combustion Line, Table J6:O79, subject to No. of lines installed
A5: =+'Cover Page'!C39 -> 2024 | B5: 1/2 Hourly Reference Periods | E5: Daily Reference Periods
A6: mg/Nm3 | B6: 1/2 hourly SO2 ELV | C6: Monthly mean of half-hourly averages | D6: Highest half- hourly average | E6: Daily SO2 ELV | F6: Monthly mean of daily averages | G6: Highest daily average | J6: =+A5 -> 2024 | K6: mg/Nm3 | L6: Monthly 1/2 hourly mean | M6: Monthly 1/2 hourly maximum | N6: Monthly daily mean | O6: Monthly daily maximum
A7: Jan | J7: A1 | K7: Jan
A8: Feb | K8: Feb
A9: Mar | K9: Mar | Q9: Whole Installation table A5:G18:
A10: Apr | K10: Apr | Q10: Mean: for 1/2 hourly and daily periods calculate mean of values across all operational combustion lines for the month
A11: May | K11: May
A12: Jun | K12: Jun
A13: Jul | K13: Jul | Q13: Maximum: for 1/2 hourly and daily periods use the highest value across all operational combustion lines for the month
A14: Aug | K14: Aug
A15: Sep | K15: Sep
A16: Oct | K16: Oct
A17: Nov | B17: 200 | C17: 15.4 | D17: 142.7 | E17: 30 | F17: 14.9 | G17: 24.1 | K17: Nov | L17: 15.4 | M17: 142.7 | N17: 14.9 | O17: 24.1
A18: Dec | B18: 200 | C18: 14.6 | D18: 184.6 | E18: 30 | F18: 12.8 | G18: 22.5 | K18: Dec | L18: 14.6 | M18: 184.6 | N18: 12.8 | O18: 22.5
K19: Annual | L19: =AVERAGE(L7:L18) -> 15 | M19: =MAX(M7:M18) -> 184.6 | N19: =AVERAGE(N7:N18) -> 13.85 | O19: =MAX(O7:O18) -> 24.1
J21: =+A5 -> 2024 | K21: mg/Nm3 | L21: Monthly 1/2 hourly mean | M21: Monthly 1/2 hourly maximum | N21: Monthly daily mean | O21: Monthly daily maximum
J22: A2 | K22: Jan
K23: Feb
K24: Mar
K25: Apr
K26: May
K27: Jun
K28: Jul
K29: Aug
K30: Sep
K31: Oct
K32: Nov
K33: Dec
K34: Annual | L34: =AVERAGE(L22:L33) ->  | M34: =MAX(M22:M33) -> 0 | N34: =AVERAGE(N22:N33) ->  | O34: =MAX(O22:O33) -> 0
J36: =+A5 -> 2024 | K36: mg/Nm3 | L36: Monthly 1/2 hourly mean | M36: Monthly 1/2 hourly maximum | N36: Monthly daily mean | O36: Monthly daily maximum
J37: A3 | K37: Jan
K38: Feb
K39: Mar
K40: Apr
K41: May
K42: Jun
K43: Jul
K44: Aug
K45: Sep
K46: Oct
K47: Nov
A48: Comments : | K48: Dec
K49: Annual | L49: =AVERAGE(L37:L48) ->  | M49: =MAX(M37:M48) -> 0 | N49: =AVERAGE(N37:N48) ->  | O49: =MAX(O37:O48) -> 0
J51: =+A5 -> 2024 | K51: mg/Nm3 | L51: Monthly 1/2 hourly mean | M51: Monthly 1/2 hourly maximum | N51: Monthly daily mean | O51: Monthly daily maximum
J52: A4 | K52: Jan
K53: Feb
K54: Mar
K55: Apr
K56: May
K57: Jun
K58: Jul
K59: Aug
K60: Sep
K61: Oct
K62: Nov
K63: Dec
K64: Annual | L64: =AVERAGE(L52:L63) ->  | M64: =MAX(M52:M63) -> 0 | N64: =AVERAGE(N52:N63) ->  | O64: =MAX(O52:O63) -> 0
J66: =+A5 -> 2024 | K66: mg/Nm3 | L66: Monthly 1/2 hourly mean | M66: Monthly 1/2 hourly maximum | N66: Monthly daily mean | O66: Monthly daily maximum
J67: A5 | K67: Jan
K68: Feb
K69: Mar
K70: Apr
K71: May
K72: Jun
K73: Jul
K74: Aug
K75: Sep
K76: Oct
K77: Nov
K78: Dec
K79: Annual | L79: =AVERAGE(L67:L78) ->  | M79: =MAX(M67:M78) -> 0 | N79: =AVERAGE(N67:N78) ->  | O79: =MAX(O67:O78) -> 0

Sheet NOx
A1: =+'Cover Page'!$B$29 -> Annual Performance Report 2024 | E1: =+'Cover Page'!$B$33 -> Bridgwater Resource Recovery Limited
A3: Monitoring of Oxides of Nitrogen emissions | D3: Whole Installation | G3: See Notes in Cell Q3 | J3: =+A3 -> Monitoring of Oxides of Nitrogen emissions | N3: Per Combustion Line | Q3: Notes:
Q4: User to add logic to complete Whole installation, Table A5:G18. From the data in Per Combustion Line, Table J6:O79, subject to No. of lines installed
A5: =+'Cover Page'!C39 -> 2024 | B5: 1/2 Hourly Reference Periods | E5: Daily Reference Periods
A6: mg/Nm3 | B6: 1/2 hourly NOx ELV | C6: Monthly mean of half-hourly averages | D6: Highest half- hourly average | E6: Daily NOx ELV | F6: Monthly mean of daily averages | G6: Highest daily average | J6: =+A5 -> 2024 | K6: mg/Nm3 | L6: Monthly 1/2 hourly mean | M6: Monthly 1/2 hourly maximum | N6: Monthly daily mean | O6: Monthly daily maximum
A7: Jan | J7: A1 | K7: Jan
A8: Feb | K8: Feb
A9: Mar | K9: Mar | Q9: Whole Installation table A5:G18:
A10: Apr | K10: Apr | Q10: Mean: for 1/2 hourly and daily periods calculate mean of values across all operational combustion lines for the month
A11: May | K11: May
A12: Jun | K12: Jun
A13: Jul | K13: Jul | Q13: Maximum: for 1/2 hourly and daily periods use the highest value across all operational combustion lines for the month
A14: Aug | K14: Aug
A15: Sep | K15: Sep
A16: Oct | K16: Oct
A17: Nov | B17: 400 | C17: 94.1 | D17: 154.3 | E17: 120 | F17: 94.5 | G17: 103.5 | K17: Nov | L17: 94.1 | M17: 154.3 | N17: 94.5 | O17: 103.5
A18: Dec | B18: 400 | C18: 79.8 | D18: 127.2 | E18: 120 | F18: 91.1 | G18: 99.7 | K18: Dec | L18: 79.8 | M18: 127.2 | N18: 91.1 | O18: 99.7
K19: Annual | L19: =AVERAGE(L7:L18) -> 86.95 | M19: =MAX(M7:M18) -> 154.3 | N19: =AVERAGE(N7:N18) -> 92.8 | O19: =MAX(O7:O18) -> 103.5
J21: =+A5 -> 2024 | K21: mg/Nm3 | L21: Monthly 1/2 hourly mean | M21: Monthly 1/2 hourly maximum | N21: Monthly daily mean | O21: Monthly daily maximum
J22: A2 | K22: Jan
K23: Feb
K24: Mar
K25: Apr
K26: May
K27: Jun
K28: Jul
K29: Aug
K30: Sep
K31: Oct
K32: Nov
K33: Dec
K34: Annual | L34: =AVERAGE(L22:L33) ->  | M34: =MAX(M22:M33) -> 0 | N34: =AVERAGE(N22:N33) ->  | O34: =MAX(O22:O33) -> 0
J36: =+A5 -> 2024 | K36: mg/Nm3 | L36: Monthly 1/2 hourly mean | M36: Monthly 1/2 hourly maximum | N36: Monthly daily mean | O36: Monthly daily maximum
J37: A3 | K37: Jan
K38: Feb
K39: Mar
K40: Apr
K41: May
K42: Jun
K43: Jul
K44: Aug
K45: Sep
K46: Oct
K47: Nov
A48: Comments : | K48: Dec
K49: Annual | L49: =AVERAGE(L37:L48) ->  | M49: =MAX(M37:M48) -> 0 | N49: =AVERAGE(N37:N48) ->  | O49: =MAX(O37:O48) -> 0
J51: =+A5 -> 2024 | K51: mg/Nm3 | L51: Monthly 1/2 hourly mean | M51: Monthly 1/2 hourly maximum | N51: Monthly daily mean | O51: Monthly daily maximum
J52: A4 | K52: Jan
K53: Feb
K54: Mar
K55: Apr
K56: May
K57: Jun
K58: Jul
K59: Aug
K60: Sep
K61: Oct
K62: Nov
K63: Dec
K64: Annual | L64: =AVERAGE(L52:L63) ->  | M64: =MAX(M52:M63) -> 0 | N64: =AVERAGE(N52:N63) ->  | O64: =MAX(O52:O63) -> 0
J66: =+A5 -> 2024 | K66: mg/Nm3 | L66: Monthly 1/2 hourly mean | M66: Monthly 1/2 hourly maximum | N66: Monthly daily mean | O66: Monthly daily maximum
J67: A5 | K67: Jan
K68: Feb
K69: Mar
K70: Apr
K71: May
K72: Jun
K73: Jul
K74: Aug
K75: Sep
K76: Oct
K77: Nov
K78: Dec
K79: Annual | L79: =AVERAGE(L67:L78) ->  | M79: =MAX(M67:M78) -> 0 | N79: =AVERAGE(N67:N78) ->  | O79: =MAX(O67:O78) -> 0

Sheet TOC
A1: =+'Cover Page'!$B$29 -> Annual Performance Report 2024 | E1: =+'Cover Page'!$B$33 -> Bridgwater Resource Recovery Limited
A3: Monitoring of Total organic carbon emissions | D3: Whole Installation | G3: See Notes in Cell Q3 | J3: =+A3 -> Monitoring of Total organic carbon emissions | N3: Per Combustion Line | Q3: Notes:
Q4: User to add logic to complete Whole installation, Table A5:G18. From the data in Per Combustion Line, Table J6:O79, subject to No. of lines installed
A5: =+'Cover Page'!C39 -> 2024 | B5: 1/2 Hourly Reference Periods | E5: Daily Reference Periods
A6: mg/Nm3 | B6: 1/2 hourly TOC ELV | C6: Monthly mean of half-hourly averages | D6: Highest half- hourly average | E6: Daily TOC ELV | F6: Monthly mean of daily averages | G6: Highest daily average | J6: =+A5 -> 2024 | K6: mg/Nm3 | L6: Monthly 1/2 hourly mean | M6: Monthly 1/2 hourly maximum | N6: Monthly daily mean | O6: Monthly daily maximum
A7: Jan | J7: A1 | K7: Jan
A8: Feb | K8: Feb
A9: Mar | K9: Mar | Q9: Whole Installation table A5:G18:
A10: Apr | K10: Apr | Q10: Mean: for 1/2 hourly and daily periods calculate mean of values across all operational combustion lines for the month
A11: May | K11: May
A12: Jun | K12: Jun
A13: Jul | K13: Jul | Q13: Maximum: for 1/2 hourly and daily periods use the highest value across all operational combustion lines for the month
A14: Aug | K14: Aug
A15: Sep | K15: Sep
A16: Oct | K16: Oct
A17: Nov | B17: 20 | C17: 0.3 | D17: 4.6 | E17: 10 | F17: 0.2 | G17: 0.4 | K17: Nov | L17: 0.3 | M17: 4.6 | N17: 0.2 | O17: 0.4
A18: Dec | B18: 20 | C18: 0.3 | D18: 1 | E18: 10 | F18: 0.2 | G18: 0.7 | K18: Dec | L18: 0.4 | M18: 1 | N18: 0.2 | O18: 0.7
K19: Annual | L19: =AVERAGE(L7:L18) -> 0.35 | M19: =MAX(M7:M18) -> 4.6 | N19: =AVERAGE(N7:N18) -> 0.2 | O19: =MAX(O7:O18) -> 0.7
J21: =+A5 -> 2024 | K21: mg/Nm3 | L21: Monthly 1/2 hourly mean | M21: Monthly 1/2 hourly maximum | N21: Monthly daily mean | O21: Monthly daily maximum
J22: A2 | K22: Jan
K23: Feb
K24: Mar
K25: Apr
K26: May
K27: Jun
K28: Jul
K29: Aug
K30: Sep
K31: Oct
K32: Nov
K33: Dec
K34: Annual | L34: =AVERAGE(L22:L33) ->  | M34: =MAX(M22:M33) -> 0 | N34: =AVERAGE(N22:N33) ->  | O34: =MAX(O22:O33) -> 0
J36: =+A5 -> 2024 | K36: mg/Nm3 | L36: Monthly 1/2 hourly mean | M36: Monthly 1/2 hourly maximum | N36: Monthly daily mean | O36: Monthly daily maximum
J37: A3 | K37: Jan
K38: Feb
K39: Mar
K40: Apr
K41: May
K42: Jun
K43: Jul
K44: Aug
K45: Sep
K46: Oct
K47: Nov
A48: Comments : | K48: Dec
K49: Annual | L49: =AVERAGE(L37:L48) ->  | M49: =MAX(M37:M48) -> 0 | N49: =AVERAGE(N37:N48) ->  | O49: =MAX(O37:O48) -> 0
J51: =+A5 -> 2024 | K51: mg/Nm3 | L51: Monthly 1/2 hourly mean | M51: Monthly 1/2 hourly maximum | N51: Monthly daily mean | O51: Monthly daily maximum
J52: A4 | K52: Jan
K53: Feb
K54: Mar
K55: Apr
K56: May
K57: Jun
K58: Jul
K59: Aug
K60: Sep
K61: Oct
K62: Nov
K63: Dec
K64: Annual | L64: =AVERAGE(L52:L63) ->  | M64: =MAX(M52:M63) -> 0 | N64: =AVERAGE(N52:N63) ->  | O64: =MAX(O52:O63) -> 0
J66: =+A5 -> 2024 | K66: mg/Nm3 | L66: Monthly 1/2 hourly mean | M66: Monthly 1/2 hourly maximum | N66: Monthly daily mean | O66: Monthly daily maximum
J67: A5 | K67: Jan
K68: Feb
K69: Mar
K70: Apr
K71: May
K72: Jun
K73: Jul
K74: Aug
K75: Sep
K76: Oct
K77: Nov
K78: Dec
K79: Annual | L79: =AVERAGE(L67:L78) ->  | M79: =MAX(M67:M78) -> 0 | N79: =AVERAGE(N67:N78) ->  | O79: =MAX(O67:O78) -> 0

Sheet Particulates
A1: =+'Cover Page'!$B$29 -> Annual Performance Report 2024 | E1: =+'Cover Page'!$B$33 -> Bridgwater Resource Recovery Limited
A3: Monitoring of Particulate matter emissions | D3: Whole Installation | G3: See Notes in Cell Q3 | J3: =+A3 -> Monitoring of Particulate matter emissions | N3: Per Combustion Line | Q3: Notes:
Q4: User to add logic to complete Whole installation, Table A5:G18. From the data in Per Combustion Line, Table J6:O79, subject to No. of lines installed
A5: =+'Cover Page'!C39 -> 2024 | B5: 1/2 Hourly Reference Periods | E5: Daily Reference Periods
A6: mg/Nm3 | B6: 1/2 hourly PM ELV | C6: Monthly mean of half-hourly averages | D6: Highest half- hourly average | E6: Daily PM ELV | F6: Monthly mean of daily averages | G6: Highest daily average | J6: =+A5 -> 2024 | K6: mg/Nm3 | L6: Monthly 1/2 hourly mean | M6: Monthly 1/2 hourly maximum | N6: Monthly daily mean | O6: Monthly daily maximum
A7: Jan | J7: A1 | K7: Jan
A8: Feb | K8: Feb
A9: Mar | K9: Mar | Q9: Whole Installation table A5:G18:
A10: Apr | K10: Apr | Q10: Mean: for 1/2 hourly and daily periods calculate mean of values across all operational combustion lines for the month
A11: May | K11: May
A12: Jun | K12: Jun
A13: Jul | K13: Jul | Q13: Maximum: for 1/2 hourly and daily periods use the highest value across all operational combustion lines for the month
A14: Aug | K14: Aug
A15: Sep | K15: Sep
A16: Oct | K16: Oct
A17: Nov | B17: 30 | C17: 0.08 | D17: 0.9 | E17: 5 | F17: 0.02 | G17: 0.12 | K17: Nov | L17: 0.08 | M17: 0.9 | N17: 0.02 | O17: 0.12
A18: Dec | B18: 30 | C18: 0.08 | D18: 0.2 | E18: 5 | F18: 0.08 | G18: 0.1 | K18: Dec | L18: 0.08 | M18: 0.2 | N18: 0.08 | O18: 0.1
K19: Annual | L19: =AVERAGE(L7:L18) -> 0.08 | M19: =MAX(M7:M18) -> 0.9 | N19: =AVERAGE(N7:N18) -> 0.05 | O19: =MAX(O7:O18) -> 0.12
J21: =+A5 -> 2024 | K21: mg/Nm3 | L21: Monthly 1/2 hourly mean | M21: Monthly 1/2 hourly maximum | N21: Monthly daily mean | O21: Monthly daily maximum
J22: A2 | K22: Jan
K23: Feb
K24: Mar
K25: Apr
K26: May
K27: Jun
K28: Jul
K29: Aug
K30: Sep
K31: Oct
K32: Nov
K33: Dec
K34: Annual | L34: =AVERAGE(L22:L33) ->  | M34: =MAX(M22:M33) -> 0 | N34: =AVERAGE(N22:N33) ->  | O34: =MAX(O22:O33) -> 0
J36: =+A5 -> 2024 | K36: mg/Nm3 | L36: Monthly 1/2 hourly mean | M36: Monthly 1/2 hourly maximum | N36: Monthly daily mean | O36: Monthly daily maximum
J37: A3 | K37: Jan
K38: Feb
K39: Mar
K40: Apr
K41: May
K42: Jun
K43: Jul
K44: Aug
K45: Sep
K46: Oct
K47: Nov
A48: Comments : | K48: Dec
K49: Annual | L49: =AVERAGE(L37:L48) ->  | M49: =MAX(M37:M48) -> 0 | N49: =AVERAGE(N37:N48) ->  | O49: =MAX(O37:O48) -> 0
J51: =+A5 -> 2024 | K51: mg/Nm3 | L51: Monthly 1/2 hourly mean | M51: Monthly 1/2 hourly maximum | N51: Monthly daily mean | O51: Monthly daily maximum
J52: A4 | K52: Jan
K53: Feb
K54: Mar
K55: Apr
K56: May
K57: Jun
K58: Jul
K59: Aug
K60: Sep
K61: Oct
K62: Nov
K63: Dec
K64: Annual | L64: =AVERAGE(L52:L63) ->  | M64: =MAX(M52:M63) -> 0 | N64: =AVERAGE(N52:N63) ->  | O64: =MAX(O52:O63) -> 0
J66: =+A5 -> 2024 | K66: mg/Nm3 | L66: Monthly 1/2 hourly mean | M66: Monthly 1/2 hourly maximum | N66: Monthly daily mean | O66: Monthly daily maximum
J67: A5 | K67: Jan
K68: Feb
K69: Mar
K70: Apr
K71: May
K72: Jun
K73: Jul
K74: Aug
K75: Sep
K76: Oct
K77: Nov
K78: Dec
K79: Annual | L79: =AVERAGE(L67:L78) ->  | M79: =MAX(M67:M78) -> 0 | N79: =AVERAGE(N67:N78) ->  | O79: =MAX(O67:O78) -> 0

Sheet CO 0.5 hourly
A1: =+'Cover Page'!$B$29 -> Annual Performance Report 2024 | E1: =+'Cover Page'!$B$33 -> Bridgwater Resource Recovery Limited
A3: Monitoring of Carbon Monoxide (half hourly) | D3: Whole Installation | G3: See Notes in Cell Q3 | J3: =+A3 -> Monitoring of Carbon Monoxide (half hourly) | N3: Per Combustion Line | Q3: Notes:
A5: If your plant has no short-term (half-hourly or 10-minute) CO ELVs, please complete this tab (stating "none" in the 1/2 hourly CO column) and ignore the CO 95% 10 min tab; otherwise, complete the relevant CO tab for your plant
Q7: User to add logic to complete Whole installation, Table A5:G18. From the data in Per Combustion Line, Table J6:O79, subject to No. of lines installed
A8: =+'Cover Page'!C39 -> 2024 | B8: 1/2 Hourly Reference Periods | E8: Daily Reference Periods
A9: mg/Nm3 | B9: 1/2 hourly CO ELV | C9: Monthly mean of half-hourly averages | D9: Highest half- hourly average | E9: Daily CO ELV | F9: Monthly mean of daily averages | G9: Highest daily average | J9: =+A8 -> 2024 | K9: mg/Nm3 | L9: Monthly 1/2 hourly mean | M9: Monthly 1/2 hourly maximum | N9: Monthly daily mean | O9: Monthly daily maximum
A10: Jan | J10: A1 | K10: Jan
A11: Feb | K11: Feb
A12: Mar | K12: Mar | Q12: Whole Installation table A5:G18:
A13: Apr | K13: Apr | Q13: Mean: for 1/2 hourly and daily periods calculate mean of values across all operational combustion lines for the month
A14: May | K14: May
A15: Jun | K15: Jun
A16: Jul | K16: Jul | Q16: Maximum: for 1/2 hourly and daily periods use the highest value across all operational combustion lines for the month
A17: Aug | K17: Aug
A18: Sep | K18: Sep
A19: Oct | K19: Oct
A20: Nov | B20: 100 | C20: 4.9 | D20: 96.6 | E20: 50 | F20: 4 | G20: 7.3 | K20: Nov | L20: 4.9 | M20: 96.6 | N20: 4 | O20: 7.3
A21: Dec | B21: 100 | C21: 6.2 | D21: 82.3 | E21: 50 | F21: 4.2 | G21: 9.5 | K21: Dec | L21: 6.2 | M21: 82.3 | N21: 4.2 | O21: 9.5
K22: Annual | L22: =AVERAGE(L10:L21) -> 5.55 | M22: =MAX(M10:M21) -> 96.6 | N22: =AVERAGE(N10:N21) -> 4.1 | O22: =MAX(O10:O21) -> 9.5
J24: =+A8 -> 2024 | K24: mg/Nm3 | L24: Monthly 1/2 hourly mean | M24: Monthly 1/2 hourly maximum | N24: Monthly daily mean | O24: Monthly daily maximum
J25: A2 | K25: Jan
K26: Feb
K27: Mar
K28: Apr
K29: May
K30: Jun
K31: Jul
K32: Aug
K33: Sep
K34: Oct
K35: Nov
K36: Dec
K37: Annual | L37: =AVERAGE(L25:L36) ->  | M37: =MAX(M25:M36) -> 0 | N37: =AVERAGE(N25:N36) ->  | O37: =MAX(O25:O36) -> 0
J39: =+A8 -> 2024 | K39: mg/Nm3 | L39: Monthly 1/2 hourly mean | M39: Monthly 1/2 hourly maximum | N39: Monthly daily mean | O39: Monthly daily maximum
J40: A3 | K40: Jan
K41: Feb
K42: Mar
K43: Apr
K44: May
K45: Jun
K46: Jul
K47: Aug
K48: Sep
K49: Oct
K50: Nov
A51: Comments : | K51: Dec
K52: Annual | L52: =AVERAGE(L40:L51) ->  | M52: =MAX(M40:M51) -> 0 | N52: =AVERAGE(N40:N51) ->  | O52: =MAX(O40:O51) -> 0
J54: =+A8 -> 2024 | K54: mg/Nm3 | L54: Monthly 1/2 hourly mean | M54: Monthly 1/2 hourly maximum | N54: Monthly daily mean | O54: Monthly daily maximum
J55: A4 | K55: Jan
K56: Feb
K57: Mar
K58: Apr
K59: May
K60: Jun
K61: Jul
K62: Aug
K63: Sep
K64: Oct
K65: Nov
K66: Dec
K67: Annual | L67: =AVERAGE(L55:L66) ->  | M67: =MAX(M55:M66) -> 0 | N67: =AVERAGE(N55:N66) ->  | O67: =MAX(O55:O66) -> 0
J69: =+A9 -> mg/Nm3 | K69: mg/Nm3 | L69: Monthly 1/2 hourly mean | M69: Monthly 1/2 hourly maximum | N69: Monthly daily mean | O69: Monthly daily maximum
J70: A5 | K70: Jan
K71: Feb
K72: Mar
K73: Apr
K74: May
K75: Jun
K76: Jul
K77: Aug
K78: Sep
K79: Oct
K80: Nov
K81: Dec
K82: Annual | L82: =AVERAGE(L70:L81) ->  | M82: =MAX(M70:M81) -> 0 | N82: =AVERAGE(N70:N81) ->  | O82: =MAX(O70:O81) -> 0

Sheet CO 95% 10 min
A1: =+'Cover Page'!$B$29 -> Annual Performance Report 2024 | E1: =+'Cover Page'!$B$33 -> Bridgwater Resource Recovery Limited
A3: Monitoring of Carbon Monoxide (10-minute avg) | E3: Whole Installation | H3: See Notes in Cell S3 | J3: =+A3 -> Monitoring of Carbon Monoxide (10-minute avg) | O3: Per Combustion Line | Q3: Notes: | S3: Notes:
A5: If your plant has no short-term (half-hourly or 10-minute) CO ELVs, please ignore this tab and instead complete the CO 0.5 hourly tab; otherwise, please complete the relevant CO tab for your plant
S7: User to add logic to complete Whole installation, Table A5:H18. From the data in Per Combustion Line, Table K6:Q79, subject to No. of lines installed
A8: =+'Cover Page'!C39 -> 2024 | B8: 10-minute Reference Periods | F8: Daily Reference Periods
A9: mg/Nm3 | B9: 95%ile 10-min avg CO ELV | C9: Highest daily 95%ile 10-min average | D9: Monthly mean of 10-min averages | E9: Highest 10-min average | F9: Daily CO ELV | G9: Monthly mean of daily averages | H9: Highest daily average | K9: =+A8 -> 2024 | L9: mg/Nm3 | M9: 95%ile 10-min avg maximum | N9: Monthly CO 10-min avg mean | O9: 10-min avg maximum | P9: Monthly daily mean | Q9: Monthly daily maximum
A10: Jan | B10: ELV or none | K10: A1 | L10: Jan
A11: Feb | B11: ELV or none | L11: Feb
A12: Mar | B12: ELV or none | L12: Mar | S12: Whole Installation table A5:H18:
A13: Apr | B13: ELV or none | L13: Apr | S13: Mean: for 10-min and daily periods use average of all operational combustion lines.
A14: May | B14: ELV or none | L14: May
A15: Jun | B15: ELV or none | L15: Jun
A16: Jul | B16: ELV or none | L16: Jul | S16: Maximum: for 10-min and daily periods use the highest of all operational combustion lines in any month.
A17: Aug | B17: ELV or none | L17: Aug
A18: Sep | B18: ELV or none | L18: Sep
A19: Oct | B19: ELV or none | L19: Oct
A20: Nov | B20: ELV or none | L20: Nov
A21: Dec | B21: ELV or none | L21: Dec
L22: Annual | M22: =AVERAGE(M10:M21) ->  | O22: =MAX(O10:O21) -> 0 | P22: =AVERAGE(P10:P21) ->  | Q22: =MAX(Q10:Q21) -> 0
K24: =+A8 -> 2024 | L24: mg/Nm3 | M24: 95%ile 10-min avg maximum | N24: Monthly CO 10-min avg mean | O24: 10-min avg maximum | P24: Monthly daily mean | Q24: Monthly daily maximum
K25: A2 | L25: Jan
L26: Feb
L27: Mar
L28: Apr
L29: May
L30: Jun
L31: Jul
L32: Aug
L33: Sep
L34: Oct
L35: Nov
L36: Dec
L37: Annual | M37: =AVERAGE(M25:M36) ->  | O37: =MAX(O25:O36) -> 0 | P37: =AVERAGE(P25:P36) ->  | Q37: =MAX(Q25:Q36) -> 0
K39: =+A8 -> 2024 | L39: mg/Nm3 | M39: 95%ile 10-min avg maximum | N39: Monthly CO 10-min avg mean | O39: 10-min avg maximum | P39: Monthly daily mean | Q39: Monthly daily maximum
K40: A3 | L40: Jan
L41: Feb
L42: Mar
L43: Apr
L44: May
L45: Jun
L46: Jul
L47: Aug
L48: Sep
L49: Oct
L50: Nov
A51: Comments : | L51: Dec
A52: Environment Agency explanatory note: The 10-minute average ELV is based on the “95th percentile”. In this case this means that 95% of the 10 minute averages in the relevant 24-hour period (i.e. 137) must be below 150 mg/Nm3, and 5% (i.e. 7) are allowed to be any value above 150 mg/Nm3. Whilst we expect operators to minimise CO emissions at all times, it is perfectly acceptable for the value of the maximum 10-minute average to be above 150 mg/Nm3, provided the 95th percentile ELV has been met for that period. | L52: Annual | M52: =AVERAGE(M40:M51) ->  | O52: =MAX(O40:O51) -> 0 | P52: =AVERAGE(P40:P51) ->  | Q52: =MAX(Q40:Q51) -> 0
K54: =+A8 -> 2024 | L54: mg/Nm3 | M54: 95%ile 10-min avg maximum | N54: Monthly CO 10-min avg mean | O54: 10-min avg maximum | P54: Monthly daily mean | Q54: Monthly daily maximum
K55: A4 | L55: Jan
L56: Feb
L57: Mar
L58: Apr
L59: May
L60: Jun
L61: Jul
L62: Aug
L63: Sep
L64: Oct
L65: Nov
L66: Dec
L67: Annual | M67: =AVERAGE(M55:M66) ->  | O67: =MAX(O55:O66) -> 0 | P67: =AVERAGE(P55:P66) ->  | Q67: =MAX(Q55:Q66) -> 0
K69: =+A8 -> 2024 | L69: mg/Nm3 | M69: 95%ile 10-min avg maximum | N69: Monthly CO 10-min avg mean | O69: 10-min avg maximum | P69: Monthly daily mean | Q69: Monthly daily maximum
K70: A5 | L70: Jan
L71: Feb
L72: Mar
L73: Apr
L74: May
L75: Jun
L76: Jul
L77: Aug
L78: Sep
L79: Oct
L80: Nov
L81: Dec
L82: Annual | M82: =AVERAGE(M70:M81) ->  | O82: =MAX(O70:O81) -> 0 | P82: =AVERAGE(P70:P81) ->  | Q82: =MAX(Q70:Q81) -> 0

Sheet NH3
A1: =+'Cover Page'!$B$29 -> Annual Performance Report 2024 | E1: =+'Cover Page'!$B$33 -> Bridgwater Resource Recovery Limited
A3: Monitoring of Ammnonia emissions | D3: Whole Installation | G3: See Notes in Cell Q3 | J3: =+A3 -> Monitoring of Ammnonia emissions | N3: Per Combustion Line | Q3: Notes:
Q4: User to add logic to complete Whole installation, Table A5:G18. From the data in Per Combustion Line, Table J6:O79, subject to No. of lines installed
A5: =+'Cover Page'!C39 -> 2024 | B5: 1/2 Hourly Reference Periods | E5: Daily Reference Periods
A6: mg/Nm3 | B6: 1/2 hourly NH3 ELV | C6: Monthly mean of half-hourly averages | D6: Highest half- hourly average | E6: Daily NH3 ELV | F6: Monthly mean of daily averages | G6: Highest daily average | J6: =+A5 -> 2024 | K6: mg/Nm3 | L6: Monthly 1/2 hourly mean | M6: Monthly 1/2 hourly maximum | N6: Monthly daily mean | O6: Monthly daily maximum
A7: Jan | J7: A1 | K7: Jan
A8: Feb | K8: Feb
A9: Mar | K9: Mar | Q9: Whole Installation table A5:G18:
A10: Apr | K10: Apr | Q10: Mean: for 1/2 hourly and daily periods calculate mean of values across all operational combustion lines for the month
A11: May | K11: May
A12: Jun | K12: Jun
A13: Jul | K13: Jul | Q13: Maximum: for 1/2 hourly and daily periods use the highest value across all operational combustion lines for the month
A14: Aug | K14: Aug
A15: Sep | K15: Sep
A16: Oct | K16: Oct
A17: Nov | B17: None | E17: 10 | F17: 3.6 | G17: 8.4 | K17: Nov | N17: 3.6 | O17: 8.4
A18: Dec | B18: None | E18: 10 | F18: 1.5 | G18: 2.4 | K18: Dec | N18: 1.5 | O18: 2.4
K19: Annual | L19: =AVERAGE(L7:L18) ->  | M19: =MAX(M7:M18) -> 0 | N19: =AVERAGE(N7:N18) -> 2.55 | O19: =MAX(O7:O18) -> 8.4
J21: =+A5 -> 2024 | K21: mg/Nm3 | L21: Monthly 1/2 hourly mean | M21: Monthly 1/2 hourly maximum | N21: Monthly daily mean | O21: Monthly daily maximum
J22: A2 | K22: Jan
K23: Feb
K24: Mar
K25: Apr
K26: May
K27: Jun
K28: Jul
K29: Aug
K30: Sep
K31: Oct
K32: Nov
K33: Dec
K34: Annual | L34: =AVERAGE(L22:L33) ->  | M34: =MAX(M22:M33) -> 0 | N34: =AVERAGE(N22:N33) ->  | O34: =MAX(O22:O33) -> 0
J36: =+A5 -> 2024 | K36: mg/Nm3 | L36: Monthly 1/2 hourly mean | M36: Monthly 1/2 hourly maximum | N36: Monthly daily mean | O36: Monthly daily maximum
J37: A3 | K37: Jan
K38: Feb
K39: Mar
K40: Apr
K41: May
K42: Jun
K43: Jul
K44: Aug
K45: Sep
K46: Oct
K47: Nov
A48: Comments : | K48: Dec
A49: An indicated ELV value of zero in the table above means that no ammonia limit is/was set in the permit. | K49: Annual | L49: =AVERAGE(L37:L48) ->  | M49: =MAX(M37:M48) -> 0 | N49: =AVERAGE(N37:N48) ->  | O49: =MAX(O37:O48) -> 0
J51: =+A5 -> 2024 | K51: mg/Nm3 | L51: Monthly 1/2 hourly mean | M51: Monthly 1/2 hourly maximum | N51: Monthly daily mean | O51: Monthly daily maximum
J52: A4 | K52: Jan
K53: Feb
K54: Mar
K55: Apr
K56: May
K57: Jun
K58: Jul
K59: Aug
K60: Sep
K61: Oct
K62: Nov
K63: Dec
K64: Annual | L64: =AVERAGE(L52:L63) ->  | M64: =MAX(M52:M63) -> 0 | N64: =AVERAGE(N52:N63) ->  | O64: =MAX(O52:O63) -> 0
J66: =+A5 -> 2024 | K66: mg/Nm3 | L66: Monthly 1/2 hourly mean | M66: Monthly 1/2 hourly maximum | N66: Monthly daily mean | O66: Monthly daily maximum
J67: A5 | K67: Jan
K68: Feb
K69: Mar
K70: Apr
K71: May
K72: Jun
K73: Jul
K74: Aug
K75: Sep
K76: Oct
K77: Nov
K78: Dec
K79: Annual | L79: =AVERAGE(L67:L78) ->  | M79: =MAX(M67:M78) -> 0 | N79: =AVERAGE(N67:N78) ->  | O79: =MAX(O67:O78) -> 0

Sheet Template changes log
A1: Log of changes to template (Environment Agency use only)
A3: Date | B3: Description of change | C3: New version number and date
A4: 2024-09-23 | B4: Air (periodic) tab: corrected symbol for Thallium to Tl
A5: 2024-09-23 | B5: Air (periodic) tab: removed last year's references to different emission limit values applying from 03/12/23 and updated all relevant ELVs
A6: 2024-09-23 | B6: Tabs for continuously monitored pollutants (HCl, SO2 etc.): changed terminology in table headings to improve clarity
A7: 2024-09-23 | B7: Tabs for continuously monitored pollutants (HCl, SO2 etc.): removed last year's references to different emission limit values applying from 03/12/23 and updated all relevant ELVs
A8: 2024-09-23 | B8: Perf 1 tab: updated formula for water usage to report m3 rather than litres and corrected error with formula copying operator name
A9: 2024-09-23 | B9: CO2 N2O tab: various changes made to notes to reflect the fact that most plants should now have calibrated CEMS and flow meters + some have C14 samplers and more up to date industry data | C9: Version 24b (for co-incinerators) - 23/09/24
A10: 2024-11-08 | B10: CO2 N2O tab: Changed the N2O CO2 equivalence factor from 298 to 265 in line with recently updated government greenhouse gas figures: https://www.gov.uk/government/publications/greenhouse-gas-reporting-conversion-factors-2024
A11: 2024-11-08 | B11: CO2 N2O tab: Added an additional requirement for municipal EfW plants to state the yearly average biogenic percentage of the waste by mass, and reference to a document which sets out a methodology for calculating NCV of waste from the results of C14 sampling.
A12: 2024-11-08 | B12: Permit Compliance tab: Two additional columns added + explanatory notes to the table entitled "Summary of non-compliances under the permit" to allow CCS scores to be stated where relevant.
A13: 2024-11-08 | B13: Residue Quality tab: Note added explaining application of TOC and LOI limits and asking operators to report both metrics where measured. | C13: Version 24.1b (for co-incinerators) - 08/11/24
A14: 2024-11-27 | B14: Operational Summary tab: table added on start-ups and shut-downs | C14: Version 24.2b (for co-incinerators) -27/11/24
